bitfinex/quotes_SOLUSD_20240703
["timestamp","ask_amount","ask_price","bid_price","bid_amount"]
[1720024457595,20.0,142.5,142.44,45.0]
[1720024458195,0.17,142.49,142.39,7.0225]
[1720024458399,0.34,142.49,142.42,7.0214]
[1720024458599,0.34,142.49,142.43,45.0]
[1720024459117,0.34,142.49,142.36,24.5743]
[1720024459118,16.1175,142.48,142.36,24.5743]
[1720024459297,20.17,142.47,142.33,260.29317331]
[1720024459487,20.17,142.47,142.42,7.0213]
[1720024459488,20.0,142.47,142.42,7.0213]
[1720024459687,20.0,142.47,142.36,20.0]
[1720024459889,6.1306,142.51,142.45,7.0199]
[1720024460096,20.0,142.5,142.45,7.0199]
[1720024460295,20.0,142.5,142.44,7.0204]
[1720024461095,20.0,142.5,142.4,7.0221]
[1720024461291,0.17,142.49,142.41,52.0215]
[1720024462217,0.17,142.49,142.41,45.0]
[1720024462410,0.34,142.49,142.4,45.0]
[1720024463412,0.34,142.49,142.42,7.0213]
[1720024463830,20.0,142.5,142.44,7.02]
[1720024464000,0.17,142.49,142.42,7.0213]
[1720024464316,0.17,142.49,142.43,45.0]
[1720024464520,0.17,142.49,142.4,45.0]
[1720024464521,0.17,142.49,142.41,7.0219]
[1720024464819,0.34,142.49,142.42,45.0]
[1720024465024,0.34,142.49,142.42,52.0214]
[1720024465200,0.34,142.49,142.42,62.5531]
[1720024465405,20.0,142.5,142.43,7.0208]
[1720024465605,20.0,142.5,142.44,45.0]
[1720024465999,20.0,142.5,142.43,7.0208]
[1720024466198,0.17,142.49,142.43,7.0208]
[1720024466899,0.17,142.49,142.42,24.5744]
[1720024467099,0.34,142.49,142.43,45.0]
[1720024467817,0.34,142.49,142.43,52.0207]
[1720024468793,20.0,142.5,142.42,17.5531]
[1720024468998,6.3755,142.55,142.51,7.017]
[1720024469212,6.3755,142.55,142.49,17.5445]
[1720024469910,6.3755,142.55,142.5,7.0174]
[1720024470097,6.3755,142.55,142.51,7.0169]
[1720024470298,6.3755,142.55,142.49,17.5445]
[1720024470917,6.3755,142.55,142.43,45.0]
[1720024471120,6.3755,142.55,142.41,28.116872]
[1720024471422,23.1765,142.54,142.4,7.022]
[1720024471621,43.1765,142.54,142.35,0.8545]
[1720024471925,45.34,142.53,142.42,7.0214]
[1720024472100,20.0,142.52,142.42,17.5531]
[1720024472295,0.34,142.51,142.42,17.5531]
[1720024473012,0.34,142.52,142.43,45.0]
[1720024473213,0.34,142.52,142.44,7.0201]
[1720024473525,0.34,142.52,142.43,52.0208]
[1720024473901,0.34,142.52,142.44,7.0204]
[1720024474417,0.34,142.52,142.43,45.0]
[1720024474624,0.34,142.52,142.45,7.0195]
[1720024475128,0.34,142.52,142.44,24.5712]
[1720024475702,0.34,142.52,142.45,7.0199]
[1720024475902,0.34,142.52,142.44,17.5508]
[1720024476921,0.34,142.52,142.45,7.0198]
[1720024477321,23.1765,142.54,142.43,45.0]
[1720024477527,23.1765,142.54,142.5,17.5432]
[1720024477702,6.5965,142.54,142.5,17.5432]
[1720024478024,6.5965,142.54,142.49,7.0179]
[1720024478520,6.5965,142.54,142.47,17.5465]
[1720024478817,6.5965,142.54,142.48,45.0]
[1720024478818,0.17,142.53,142.48,45.0]
[1720024479022,0.17,142.53,142.47,17.5465]
[1720024479322,20.17,142.53,142.47,24.5653]
[1720024479524,20.17,142.53,142.48,7.0184]
[1720024480524,20.17,142.53,142.47,24.5654]
[1720024481506,20.17,142.53,142.44,17.7206]
[1720024481733,20.17,142.53,142.39,29.89]
[1720024481910,0.17,142.52,142.39,29.89]
[1720024482103,20.17,142.53,142.47,17.5472]
[1720024482508,20.17,142.53,142.49,17.5448]
[1720024483009,20.17,142.53,142.39,29.89]
[1720024483322,20.0,142.53,142.41,45.34]
[1720024483504,20.0,142.53,142.47,24.5658]
[1720024483821,20.0,142.53,142.41,45.34]
[1720024483822,20.0,142.53,142.49,17.5439]
[1720024484128,20.0,142.53,142.49,24.5617]
[1720024484728,20.0,142.53,142.49,17.5439]
[1720024485025,20.0,142.53,142.41,0.34]
[1720024485222,20.0,142.53,142.46,7.0192]
[1720024486210,0.17,142.52,142.46,7.0192]
[1720024486415,0.17,142.52,142.45,24.5691]
[1720024486615,0.17,142.52,142.46,52.0193]
[1720024486908,20.0,142.53,142.47,17.5471]
[1720024487708,20.0,142.53,142.47,24.5658]
[1720024489338,20.0,142.53,142.48,7.0183]
[1720024490613,20.0,142.53,142.47,24.5659]
[1720024490813,20.0,142.53,142.48,45.0]
[1720024491635,20.0,142.53,142.48,52.0184]
[1720024492211,20.0,142.53,142.48,45.0]
[1720024492411,20.0,142.53,142.44,17.5503]
[1720024492625,0.17,142.52,142.44,17.5503]
[1720024492818,20.0,142.53,142.45,52.0198]
[1720024493333,0.17,142.52,142.45,52.0198]
[1720024494033,15.404,142.51,142.45,52.0198]
[1720024494231,15.404,142.51,142.44,17.5503]
[1720024494417,15.404,142.51,142.36,28.125441]
[1720024494418,20.34,142.5,142.36,28.125441]
[1720024494617,20.34,142.5,142.42,7.0212]
[1720024495446,20.34,142.5,142.43,7.0209]
[1720024496444,20.34,142.5,142.42,24.5746]
[1720024496619,20.34,142.5,142.43,45.0]
[1720024496819,20.34,142.5,142.43,52.0209]
[1720024497331,20.17,142.5,142.44,7.0203]
[1720024497526,20.17,142.5,142.43,52.0209]
[1720024498026,20.17,142.5,142.44,7.0204]
[1720024499231,20.17,142.5,142.43,52.0208]
[1720024499856,20.17,142.5,142.43,45.0]
[1720024500356,20.17,142.5,142.43,52.0209]
[1720024500648,6.5461,142.49,142.41,7.0218]
[1720024500848,20.0,142.48,142.43,17.5522]
[1720024501146,20.0,142.48,142.4,17.555]
[1720024501317,0.17,142.47,142.4,17.555]
[1720024501721,0.17,142.47,142.42,7.0214]
[1720024502019,20.0,142.48,142.44,7.0204]
[1720024502323,20.0,142.48,142.42,17.5535]
[1720024502529,0.17,142.47,142.42,24.5748]
[1720024503314,0.34,142.47,142.39,24.5794]
[1720024503520,0.34,142.47,142.4,7.0222]
[1720024504635,0.34,142.47,142.33,25.89317331]
[1720024504636,16.012,142.46,142.38,7.023]
[1720024504842,20.17,142.45,142.33,0.89317331]
[1720024505042,20.17,142.45,142.4,7.0224]
[1720024505438,20.17,142.45,142.35,37.5611]
[1720024505630,6.7122,142.44,142.35,17.5611]
[1720024505836,20.17,142.43,142.4,7.0223]
[1720024506019,20.17,142.43,142.39,17.5569]
[1720024506224,20.17,142.43,142.33,21.06317331]
[1720024506839,20.17,142.43,142.34,45.17]
[1720024507141,20.0,142.43,142.34,45.0]
[1720024507333,20.0,142.43,142.39,7.0226]
[1720024507536,6.5422,142.44,142.4,62.5558]
[1720024507733,6.5422,142.44,142.4,17.5558]
[1720024508125,6.5422,142.44,142.37,17.559]
[1720024508328,6.5422,142.44,142.38,45.0]
[1720024508558,6.5422,142.44,142.38,52.0234]
[1720024509125,0.17,142.43,142.37,24.5828]
[1720024509521,0.34,142.43,142.36,7.0243]
[1720024509748,0.34,142.43,142.33,21.06317331]
[1720024509749,20.34,142.43,142.37,7.0238]
[1720024509947,20.34,142.43,142.38,7.0233]
[1720024510261,20.17,142.43,142.38,7.0233]
[1720024510950,20.0,142.43,142.39,7.0227]
[1720024511456,20.0,142.43,142.38,24.5814]
[1720024511646,20.0,142.43,142.39,7.0229]
[1720024511852,20.0,142.43,142.38,24.5814]
[1720024512344,20.0,142.43,142.36,7.024]
[1720024512650,20.0,142.43,142.37,45.0]
[1720024513029,20.0,142.43,142.37,52.0239]
[1720024513823,20.0,142.43,142.36,7.0243]
[1720024514030,0.17,142.42,142.36,7.0243]
[1720024514329,0.17,142.42,142.35,17.5615]
[1720024514330,0.17,142.42,142.35,24.5862]
[1720024514524,0.17,142.42,142.36,45.0]
[1720024514833,16.4892,142.41,142.35,17.5615]
[1720024515028,20.0,142.4,142.34,7.0253]
[1720024515230,20.0,142.4,142.33,7.91887331]
[1720024516644,6.3564,142.39,142.33,0.89317331]
[1720024516957,20.34,142.38,142.33,0.89317331]
[1720024520575,15.9295,142.36,142.21,259.4]
[1720024520732,0.17,142.35,142.27,17.572]
[1720024520927,6.5879,142.34,142.27,17.572]
[1720024521163,0.17,142.33,142.27,17.572]
[1720024521371,20.17,142.33,142.28,7.0282]
[1720024522651,20.17,142.33,142.29,17.5694]
[1720024522856,20.17,142.33,142.3,7.0273]
[1720024523058,20.17,142.33,142.29,24.5971]
[1720024525564,20.17,142.33,142.29,17.5694]
[1720024525767,20.17,142.33,142.3,7.0273]
[1720024526859,20.17,142.33,142.26,17.5723]
[1720024527057,0.17,142.32,142.27,7.0288]
[1720024528289,0.17,142.32,142.28,7.0283]
[1720024529676,20.17,142.33,142.22,20.17]
[1720024529994,20.17,142.33,142.3,7.0272]
[1720024530160,20.17,142.33,142.28,17.5707]
[1720024530476,20.17,142.33,142.29,7.0277]
[1720024531587,20.17,142.33,142.27,7.0288]
[1720024531759,0.17,142.32,142.28,7.0283]
[1720024531960,20.17,142.33,142.28,7.0283]
[1720024532360,0.17,142.32,142.28,7.0283]
[1720024532661,20.17,142.33,142.27,17.5719]
[1720024533189,20.17,142.33,142.28,7.028]
[1720024533571,20.17,142.33,142.32,7.0264]
[1720024533572,20.0,142.33,142.32,7.0264]
[1720024533909,20.0,142.33,142.31,24.5937]
[1720024534109,20.0,142.33,142.25,26.58]
[1720024534279,20.0,142.33,142.3,7.0273]
[1720024534617,20.0,142.33,142.25,26.58]
[1720024534777,20.0,142.33,142.31,7.0268]
[1720024535303,20.0,142.33,142.32,7.0264]
[1720024535477,15.9295,142.36,142.33,7.0258]
[1720024536102,15.9295,142.36,142.32,24.5919]
[1720024536480,15.9295,142.36,142.33,7.0255]
[1720024536684,6.5616,142.38,142.34,17.5631]
[1720024537013,6.5616,142.38,142.36,7.0243]
[1720024537320,6.5616,142.38,142.34,17.5631]
[1720024537677,6.5616,142.38,142.36,7.0243]
[1720024537895,16.0612,142.4,142.36,7.0243]
[1720024538189,16.0612,142.4,142.37,7.0235]
[1720024538388,16.0612,142.4,142.38,7.0232]
[1720024538602,6.0791,142.42,142.38,7.0232]
[1720024539181,6.0791,142.42,142.37,7.0237]
[1720024539397,6.0791,142.42,142.36,24.5842]
[1720024539603,6.0791,142.42,142.37,45.0]
[1720024540097,6.0791,142.42,142.36,17.56]
[1720024540303,6.0791,142.42,142.33,24.5896]
[1720024540812,0.34,142.41,142.33,24.5896]
[1720024541176,0.34,142.41,142.3,51.1747]
[1720024541379,20.34,142.41,142.32,7.0264]
[1720024541590,20.34,142.41,142.31,7.0267]
[1720024541791,20.34,142.41,142.32,7.0264]
[1720024542499,20.34,142.41,142.33,7.0258]
[1720024542716,20.34,142.41,142.34,7.0253]
[1720024543201,20.34,142.41,142.32,17.5657]
[1720024543602,20.34,142.41,142.33,7.0256]
[1720024543801,20.34,142.41,142.34,7.0253]
[1720024544016,20.34,142.41,142.36,7.0243]
[1720024544199,20.34,142.41,142.34,17.5634]
[1720024544401,20.34,142.41,142.33,7.0258]
[1720024544602,20.34,142.41,142.32,7.0262]
[1720024545201,20.34,142.41,142.33,7.0258]
[1720024545711,16.1077,142.4,142.29,26.58]
[1720024545911,6.0787,142.38,142.3,7.0273]
[1720024546210,20.34,142.37,142.3,7.0273]
[1720024549017,20.34,142.37,142.31,7.0267]
[1720024549201,20.34,142.37,142.3,24.5954]
[1720024550013,20.34,142.37,142.31,7.0268]
[1720024551220,20.34,142.37,142.3,24.5954]
[1720024551392,16.2462,142.36,142.3,24.5954]
[1720024551594,20.17,142.35,142.31,7.0269]
[1720024553621,6.0787,142.38,142.32,71.58]
[1720024553790,6.0787,142.38,142.37,24.5837]
[1720024554113,16.2807,142.39,142.38,7.0234]
[1720024554303,6.2059,142.41,142.39,7.0228]
[1720024554695,6.2059,142.41,142.4,7.0224]
[1720024555629,26.58,142.52,142.35,26.58]
[1720024555630,6.214,142.45,142.42,7.0211]
[1720024556316,6.214,142.45,142.41,24.5765]
[1720024556522,6.214,142.45,142.41,17.5547]
[1720024557518,6.214,142.45,142.41,24.5763]
[1720024558117,20.0,142.44,142.41,24.5763]
[1720024559426,20.0,142.44,142.42,7.0213]
[1720024560316,20.0,142.44,142.41,24.5765]
[1720024562319,20.0,142.44,142.35,46.58]
[1720024562521,16.5814,142.42,142.38,24.5809]
[1720024562700,16.5814,142.42,142.37,7.0239]
[1720024562701,20.17,142.41,142.37,7.0239]
[1720024562906,20.0,142.41,142.38,7.0233]
[1720024563430,20.0,142.41,142.39,7.0229]
[1720024564118,16.5814,142.42,142.4,17.5553]
[1720024565206,16.5814,142.42,142.41,7.0219]
[1720024565430,36.5814,142.42,142.41,7.0219]
[1720024566413,16.5814,142.42,142.41,7.0219]
[1720024566720,21.662,142.45,142.42,7.0214]
[1720024566918,20.0,142.44,142.43,7.0209]
[1720024567130,126.58,142.6,142.43,7.0209]
[1720024567131,23.0501,142.49,142.43,45.0]
[1720024567347,23.0501,142.49,142.44,45.0]
[1720024567711,23.0501,142.49,142.43,45.0]
[1720024568218,23.0501,142.49,142.46,17.5487]
[1720024568611,23.0115,142.52,142.48,17.5461]
[1720024568810,23.0115,142.52,142.43,45.0]
[1720024568811,23.0115,142.52,142.46,7.0194]
[1720024569013,23.0115,142.52,142.47,7.019]
[1720024569407,23.0115,142.52,142.43,45.0]
[1720024569408,23.0115,142.52,142.46,7.0193]
[1720024569616,23.0115,142.52,142.44,26.58]
[1720024569825,6.0169,142.55,142.46,26.58]
[1720024570009,6.0169,142.55,142.49,17.5448]
[1720024570214,6.0169,142.55,142.5,7.0172]
[1720024570909,6.0169,142.55,142.46,44.1278]
[1720024571111,20.0,142.54,142.48,7.0182]
[1720024571313,20.0,142.54,142.47,52.0189]
[1720024571538,20.0,142.54,142.47,7.0189]
[1720024571721,20.0,142.54,142.48,7.0185]
[1720024571915,20.0,142.54,142.5,7.0175]
[1720024572117,20.0,142.54,142.45,26.58]
[1720024572424,0.34,142.53,142.49,7.0177]
[1720024572624,0.34,142.53,142.48,24.564]
[1720024572829,0.34,142.53,142.47,7.0188]
[1720024573345,0.34,142.53,142.45,17.5489]
[1720024575018,0.34,142.48,142.42,24.574]
[1720024575217,0.34,142.48,142.43,7.0209]
[1720024576226,0.34,142.48,142.43,7.0206]
[1720024577839,15.4284,142.47,142.39,17.5566]
[1720024578345,20.34,142.46,142.41,7.0219]
[1720024578715,20.17,142.46,142.41,7.0219]
[1720024578915,20.17,142.46,142.4,7.0222]
[1720024579426,0.17,142.45,142.4,7.0222]
[1720024579634,0.17,142.45,142.39,24.5795]
[1720024579831,0.17,142.45,142.4,7.0223]
[1720024580149,0.17,142.45,142.4,7.0221]
[1720024581244,0.17,142.45,142.39,24.5793]
[1720024582646,0.17,142.45,142.32,20.0]
[1720024582647,6.1764,142.44,142.32,20.0]
[1720024582819,6.1764,142.44,142.35,7.0246]
[1720024582820,36.8491,142.43,142.35,7.0246]
[1720024583025,36.8491,142.43,142.34,7.0252]
[1720024583323,36.8491,142.43,142.31,26.58]
[1720024583324,36.8491,142.43,142.33,7.0257]
[1720024583524,36.8491,142.43,142.34,7.0253]
[1720024584049,36.8491,142.43,142.34,7.0252]
[1720024584649,36.8491,142.43,142.34,24.5881]
[1720024585025,36.8491,142.43,142.35,7.0244]
[1720024585337,36.8491,142.43,142.34,24.5881]
[1720024585533,36.8491,142.43,142.35,7.0249]
[1720024585737,36.8491,142.43,142.37,7.0239]
[1720024585925,36.8491,142.43,142.36,17.5609]
[1720024586757,36.5091,142.43,142.36,24.5849]
[1720024588054,0.34,142.42,142.35,7.0248]
[1720024588362,0.34,142.42,142.34,7.025]
[1720024588657,0.34,142.42,142.35,7.0248]
[1720024589851,0.34,142.42,142.33,24.5893]
[1720024590061,6.0842,142.41,142.34,7.0253]
[1720024590262,7.0237,142.38,142.34,7.0253]
[1720024590545,7.0237,142.38,142.33,17.5637]
[1720024590546,20.34,142.37,142.33,17.5637]
[1720024591131,20.34,142.37,142.33,24.5894]
[1720024592619,20.0,142.37,142.35,7.0247]
[1720024592843,20.0,142.39,142.35,7.0247]
[1720024593035,0.17,142.38,142.35,7.0247]
[1720024593251,20.0,142.4,142.36,7.0243]
[1720024593460,20.0,142.4,142.37,7.0239]
[1720024594360,20.0,142.4,142.36,7.0242]
[1720024594732,20.0,142.4,142.35,24.5868]
[1720024595042,7.0232,142.39,142.35,17.562]
[1720024595232,7.0241,142.37,142.33,7.0258]
[1720024595559,20.0,142.38,142.34,7.0252]
[1720024595854,20.0,142.38,142.35,7.0246]
[1720024596035,20.0,142.39,142.36,7.0241]
[1720024596238,27.0225,142.4,142.35,7.0247]
[1720024596432,7.1932,142.39,142.34,24.5883]
[1720024596936,7.1932,142.39,142.35,7.0248]
[1720024597347,0.17,142.39,142.35,7.0248]
[1720024597540,27.0225,142.4,142.36,7.0244]
[1720024597733,20.0,142.4,142.36,7.0244]
[1720024597934,20.0,142.4,142.32,26.58]
[1720024598160,20.0,142.4,142.33,45.0]
[1720024598538,27.0226,142.4,142.35,7.0246]
[1720024598733,20.0,142.4,142.33,45.0]
[1720024598954,20.0,142.4,142.36,7.0241]
[1720024599463,20.0,142.4,142.37,17.5597]
[1720024599663,16.5091,142.43,142.35,26.58]
[1720024599965,17.5453,142.49,142.42,7.0213]
[1720024599966,15.2555,142.47,142.42,7.0213]
[1720024600139,22.2748,142.47,142.43,7.0209]
[1720024600344,7.0195,142.46,142.41,17.5548]
[1720024603565,15.9152,142.59,142.53,26.58]
[1720024603770,7.0144,142.57,142.53,26.58]
[1720024603939,15.9152,142.59,142.5,33.5974]
[1720024604140,7.0151,142.55,142.49,33.5979]
[1720024604340,7.0145,142.56,142.51,7.017]
[1720024604540,7.0145,142.56,142.51,7.0169]
[1720024604955,33.4489,142.59,142.48,62.5458]
[1720024605160,33.4489,142.59,142.48,17.5458]
[1720024605340,100.0,142.52,142.32,1.7477]
[1720024605541,17.5457,142.49,142.4,7.0223]
[1720024605777,17.5457,142.49,142.38,24.5814]
[1720024605778,6.1886,142.47,142.38,24.5814]
[1720024605948,7.0205,142.44,142.38,24.5814]
[1720024606156,7.02,142.45,142.4,7.0223]
[1720024606357,7.3597,142.46,142.41,7.0219]
[1720024606567,20.0,142.45,142.41,7.0219]
[1720024606885,20.0,142.45,142.4,17.5556]
[1720024607080,20.34,142.46,142.36,26.58]
[1720024607385,20.34,142.46,142.38,7.023]
[1720024607386,7.0206,142.44,142.38,7.023]
[1720024607544,0.17,142.43,142.38,7.023]
[1720024608452,0.17,142.43,142.39,7.0229]
[1720024609103,0.17,142.43,142.37,17.5594]
[1720024609375,20.17,142.43,142.37,17.5594]
[1720024609555,0.17,142.43,142.37,17.5594]
[1720024609953,7.1914,142.43,142.37,24.5832]
[1720024610169,27.0215,142.42,142.37,24.5832]
[1720024612865,20.0,142.42,142.38,7.0233]
[1720024613176,7.0219,142.41,142.36,7.0243]
[1720024613379,0.17,142.41,142.34,17.5626]
[1720024613684,0.17,142.41,142.35,45.0]
[1720024613875,0.17,142.41,142.35,52.0246]
[1720024613876,7.0225,142.4,142.35,52.0246]
[1720024614254,7.0225,142.4,142.36,7.0244]
[1720024614458,7.1921,142.41,142.36,7.0244]
[1720024615258,20.0,142.4,142.36,7.0244]
[1720024618084,27.0225,142.4,142.36,7.0244]
[1720024618884,20.0,142.4,142.37,7.0237]
[1720024619184,20.17,142.44,142.4,7.022]
[1720024619374,20.17,142.44,142.29,46.13]
[1720024619579,7.1913,142.43,142.38,7.0232]
[1720024619774,27.1913,142.43,142.38,7.0232]
[1720024619970,7.1913,142.43,142.38,7.0232]
[1720024620163,7.0225,142.4,142.34,17.5626]
[1720024620367,7.0225,142.4,142.36,7.0243]
[1720024620368,21.7119,142.4,142.36,7.0243]
[1720024620874,7.023,142.39,142.35,24.5868]
[1720024621088,21.7119,142.4,142.37,7.0238]
[1720024621262,21.7119,142.4,142.38,7.0233]
[1720024621463,21.7119,142.4,142.3,20.0]
[1720024621682,21.7119,142.4,142.31,45.34]
[1720024621889,21.7119,142.4,142.37,7.0237]
[1720024622576,21.7119,142.4,142.37,17.5595]
[1720024622882,21.7119,142.4,142.34,17.5634]
[1720024623084,21.7119,142.4,142.37,7.0236]
[1720024623290,21.7119,142.4,142.3,20.0]
[1720024623461,21.7119,142.4,142.29,20.17]
[1720024623666,21.7119,142.4,142.28,7.41058971]
[1720024623868,20.34,142.39,142.33,7.0257]
[1720024624082,27.3631,142.39,142.34,7.0254]
[1720024624266,27.1931,142.39,142.34,7.0254]
[1720024624585,20.0,142.39,142.36,7.0241]
[1720024625083,20.0,142.39,142.35,17.5616]
[1720024625285,20.0,142.39,142.37,17.5597]
[1720024625496,20.0,142.39,142.28,46.7477]
[1720024625689,20.0,142.39,142.29,20.34]
[1720024625868,20.0,142.39,142.3,45.0]
[1720024626073,20.0,142.39,142.36,7.0241]
[1720024626386,28.7345,142.4,142.36,7.0241]
[1720024628391,7.022,142.41,142.36,7.0242]
[1720024628569,0.17,142.42,142.34,7.0253]
[1720024628885,7.0237,142.38,142.33,7.0257]
[1720024629081,7.0245,142.36,142.28,1.7477]
[1720024629287,7.0246,142.36,142.31,7.0267]
[1720024629468,7.0246,142.36,142.32,7.0263]
[1720024629670,21.7821,142.37,142.25,1.7477]
[1720024629874,7.0246,142.36,142.31,7.0265]
[1720024630077,21.9521,142.37,142.33,7.0256]
[1720024630289,20.0,142.36,142.33,7.0256]
[1720024630674,22.8346,142.42,142.3,26.6]
[1720024630882,20.34,142.41,142.37,24.5827]
[1720024631191,22.8346,142.42,142.37,17.559]
[1720024631379,22.8346,142.42,142.36,26.6]
[1720024631692,29.8562,142.42,142.37,62.5595]
[1720024631881,29.8562,142.42,142.37,69.5833]
[1720024632078,7.0229,142.39,142.34,24.588]
[1720024632284,22.8346,142.42,142.34,17.5628]
[1720024632482,7.0221,142.41,142.36,7.0241]
[1720024632681,7.0221,142.41,142.37,7.0239]
[1720024632996,22.8346,142.42,142.37,7.0239]
[1720024633295,29.8562,142.42,142.38,7.0234]
[1720024633592,22.8346,142.42,142.38,7.0234]
[1720024634495,22.8346,142.42,142.37,7.0239]
[1720024634678,7.0226,142.4,142.36,24.585]
[1720024634879,7.0226,142.4,142.36,17.5606]
[1720024635079,0.17,142.41,142.33,17.5638]
[1720024635389,0.34,142.41,142.25,1.7477]
[1720024635590,7.0255,142.34,142.29,17.569]
[1720024635980,21.8212,142.35,142.27,33.6287]
[1720024636297,7.026,142.33,142.28,7.0283]
[1720024636499,27.1955,142.34,142.29,7.0276]
[1720024636820,27.1958,142.34,142.29,7.0275]
[1720024636975,20.0,142.34,142.24,26.6]
[1720024637169,20.0,142.34,142.31,7.0267]
[1720024637577,20.0,142.34,142.3,24.5951]
[1720024638193,20.0,142.34,142.31,7.0267]
[1720024638787,20.0,142.34,142.32,7.0264]
[1720024638999,20.0,142.34,142.31,7.0267]
[1720024639176,20.0,142.34,142.3,24.595]
[1720024639377,27.0255,142.34,142.3,17.5678]
[1720024639593,27.0255,142.34,142.29,7.0278]
[1720024639795,0.17,142.33,142.27,17.5712]
[1720024640001,7.0266,142.32,142.27,24.5999]
[1720024640501,7.0266,142.32,142.28,7.0283]
[1720024640794,20.0,142.34,142.3,7.0273]
[1720024641585,20.0,142.34,142.29,24.5967]
[1720024641586,27.0255,142.34,142.29,24.5967]
[1720024641791,7.1961,142.33,142.28,7.0282]
[1720024642097,7.1961,142.33,142.29,7.0278]
[1720024642098,20.0,142.32,142.29,7.0278]
[1720024642297,27.0265,142.32,142.28,17.5708]
[1720024642484,7.0272,142.31,142.26,7.029]
[1720024642801,7.0272,142.31,142.27,45.0]
[1720024642998,7.0272,142.31,142.27,52.0288]
[1720024643301,27.0265,142.32,142.27,52.0288]
[1720024643688,27.0265,142.32,142.27,69.6009]
[1720024643896,27.0265,142.32,142.28,7.0282]
[1720024644601,7.0269,142.31,142.27,17.5721]
[1720024644799,27.0265,142.32,142.27,24.6007]
[1720024645104,20.0,142.32,142.24,17.5747]
[1720024645400,7.367,142.31,142.26,7.0293]
[1720024645600,7.0275,142.3,142.26,7.0293]
[1720024646108,7.0275,142.3,142.25,7.0297]
[1720024646293,0.34,142.31,142.25,7.0297]
[1720024646605,7.0276,142.3,142.25,7.0297]
[1720024647101,7.0279,142.29,142.25,7.0297]
[1720024647293,0.17,142.3,142.24,24.6049]
[1720024647497,20.17,142.31,142.24,24.6049]
[1720024647809,7.028,142.29,142.24,24.6049]
[1720024648102,7.028,142.29,142.25,7.0298]
[1720024648304,0.17,142.3,142.24,17.5747]
[1720024648305,29.2395,142.28,142.24,17.5747]
[1720024648478,29.0695,142.28,142.24,17.5747]
[1720024649392,7.0295,142.26,142.21,24.6105]
[1720024649706,7.0295,142.26,142.19,0.8515417]
[1720024649707,20.17,142.25,142.19,0.8515417]
[1720024649879,0.17,142.25,142.19,0.8515417]
[1720024650083,7.0299,142.25,142.2,7.0322]
[1720024650303,7.0323,142.2,142.19,0.8515417]
[1720024650516,27.3723,142.2,142.19,0.8515417]
[1720024651026,7.0387,142.07,142.02,7.0412]
[1720024651317,35.172,142.16,142.0,30.23293473]